Cogmind - Beta 9.2 @@@ ROGUE MODE // 2019.12.20 @ 00:24:33 Player: Fleshy Vegetable Bird Result: Destroyed by H-88 Terminator with KE Penetrator Performance ------------- Evolutions (9) 4500 Regions Visited (23) 4600 Robots Destroyed (135) 675 Value Destroyed (4213) 4213 Prototype IDs (61) 1220 Alien Tech Used (8) 1600 Bonus (3558) 3558 TOTAL SCORE: 20366 Bonus ------- High Alert Combat Kills 485 Follower Combat Kills 153 Met Data Miner 300 Met Warlord at Base 500 MAIN.C Attacked Warlord 500 Warlord Defense Kill 120 Scanned by Researcher 500 Pursued by Intercept 1000 Cogmind --------- Core Integrity 0/1850 Matter 94/300 Energy 349/350 System Corruption 20% Temperature Cool (0) Movement Core (50) Location -1/Access Parts ------- > --- POWER (2) -------- (None) > --- PROPULSION (8) --- (None) > --- UTILITY (14) ----- Advanced Core Analyzer Improved System Shield > --- WEAPON (2) ------- (None) > --- INVENTORY (4) ---- Quantum Capacitor Peak State ------------ > --- POWER ------------ Vortex Chain Reactor > --- PROPULSION ------- Nuclear Pulse Array Impulse Thruster Electron Diverter Cooled Impulse Thruster Cooled Impulse Thruster Cooled Impulse Thruster Cooled Impulse Thruster > --- UTILITY ---------- Experimental Cooling System Small Storage Unit Medium Storage Unit Experimental Terrain Scan Processor Advanced Core Analyzer Advanced Transmission Jammer Advanced ECM Suite Maneuvering Thrusters Light Regenerative Plating Experimental Focal Shield Improved Force Field Hacking Suite Improved System Shield > --- WEAPON ----------- Enhanced Nova Cannon Phasing Sabre > --- INVENTORY -------- Light Quantum Reactor Q-thruster Quantum Capacitor Point Defense Array Transdimensional Reconstructor Vortex Shotgun Vortex Shotgun Potential Cannon [Rating: 177] Favorites ----------- Power Deuterium Engine Engine Deuterium Engine Power Core Micro Nuclear Core Reactor Vortex Chain Reactor Propulsion Improved VTOL Module Treads Light Treads Leg Aluminum Leg Wheel Wheel Flight Unit Improved VTOL Module Utility High-capacity Storage Unit Device Long-range Sensor Array Storage High-capacity Storage Unit Processor Experimental Signal Interpreter Hackware Hacking Suite Protection Light Regenerative Plating Artifact Matter Drive Weapon Improved Assault Rifle Energy Gun Medium Laser Energy Cannon Enhanced Nova Cannon Ballistic Gun Improved Assault Rifle Launcher Shock Bomb Launcher Slashing Weapon Ionic Axe Piercing Weapon Lance Build | -11 -10 -10 -9 -8 -7 -6 -6 -6 -6 -5 -5 -4 -4 -4 -4 -4 -4 -3 -3 -2 -2 -2 -1 ------- Run | Scr Mat Min Mat Mat Fac Fac Low Low Dat Pro Fac Fac Was Fac Upp Upp War Pro Res Res Tes Sec Acc Slots Evolved 18 | . . . 2 2 2 2 . . . . 2 2 . . . . . . 2 2 . . 2 Power 1 | . . . . . . 1 . . . . . . . . . . . . . . . . . Propulsion 5 | . . . 1 1 . 1 . . . . . 1 . . . . . . . . . . 1 Utility 12 | . . . 1 1 2 . . . . . 2 1 . . . . . . 2 2 . . 1 Weapon . | . . . . . . . . . . . . . . . . . . . . . . . . Parts Attached 218 | 7 4 4 26 16 27 18 5 . . 3 9 4 . 7 2 2 17 3 6 11 9 19 19 Power 21 | 1 . 1 3 1 3 5 . . . . 1 1 . 2 1 . 1 . . 1 . . . Engine 8 | 1 . 1 3 1 2 . . . . . . . . . . . . . . . . . . Core 9 | . . . . . 1 4 . . . . 1 1 . 1 1 . . . . . . . . Reactor 4 | . . . . . . 1 . . . . . . . 1 . . 1 . . 1 . . . Propulsion 54 | 2 . 1 12 7 6 3 1 . . . . 1 . 1 . 1 3 1 3 6 . 2 4 Treads 11 | . . . 3 6 1 . . . . . . . . . . . . . . . . . 1 Leg 1 | . . . . . 1 . . . . . . . . . . . . . . . . . . Wheel 11 | 2 . 1 8 . . . . . . . . . . . . . . . . . . . . Hover . | . . . . . . . . . . . . . . . . . . . . . . . . Flight 31 | . . . 1 1 4 3 1 . . . . 1 . 1 . 1 3 1 3 6 . 2 3 Utility 75 | 1 4 . 1 2 7 6 3 . . 1 5 2 . 4 1 1 10 1 3 2 5 7 9 Device 35 | . . . . . 1 3 2 . . . 1 1 . 2 . 1 9 1 2 2 1 3 6 Storage 17 | 1 4 . 1 . 1 . 1 . . . . . . 1 . . . . . . 4 2 2 Processor 7 | . . . . . 1 2 . . . 1 1 . . . . . 1 . . . . . 1 Hackware 6 | . . . . 1 1 . . . . . 3 . . . 1 . . . . . . . . Protection 9 | . . . . 1 3 1 . . . . . 1 . 1 . . . . 1 . . 1 . Artifact 1 | . . . . . . . . . . . . . . . . . . . . . . 1 . Weapon 68 | 3 . 2 10 6 11 4 1 . . 2 3 . . . . . 3 1 . 2 4 10 6 Energy Gun 17 | 2 . 1 1 . 1 3 . . . . . . . . . . 3 . . . 1 3 2 Energy Cannon 14 | . . . 1 . 4 . . . . . . . . . . . . . . 1 2 3 3 Ballistic Gun 14 | 1 . 1 6 4 1 1 . . . . . . . . . . . . . . . . . Ballistic Cannon . | . . . . . . . . . . . . . . . . . . . . . . . . Launcher 3 | . . . . . 3 . . . . . . . . . . . . . . . . . . Special Weapon . | . . . . . . . . . . . . . . . . . . . . . . . . Impact Weapon . | . . . . . . . . . . . . . . . . . . . . . . . . Slashing Weapon 19 | . . . 2 2 2 . 1 . . 2 3 . . . . . . 1 . 1 1 4 . Piercing Weapon 1 | . . . . . . . . . . . . . . . . . . . . . . . 1 Special Melee Weapon . | . . . . . . . . . . . . . . . . . . . . . . . . Unidentified Prototypes 36 | . . . 3 1 . 5 . . . . 1 . . 1 . . 7 1 1 1 5 10 . Parts Lost 71 | . . 4 15 1 12 . 3 1 . 2 1 . . . 1 . 1 1 1 3 . 2 23 Power 8 | . . 1 2 . 2 . 1 . . 1 . . . . . . . . . . . . 1 Propulsion 27 | . . 1 7 . 6 . . . . 1 . . . . . . . 1 . 3 . . 8 Utility 19 | . . . . . . . 1 1 . . 1 . . . 1 . 1 . 1 . . 2 11 Weapon 17 | . . 2 6 1 4 . 1 . . . . . . . . . . . . . . . 3 Highest Loss Streak 23 | . . 2 4 1 4 . 3 1 . 2 1 . . . 1 . 1 1 1 1 . 1 23 Average Slot Usage (%) 88 | . 99 96 94 95 87 99 80 79 73 75 80 73 84 88 86 86 89 87 88 85 89 87 60 Engine 4 | . 14 13 9 9 5 2 . . . . . . . . . . . . . . . . . Core 2 | . . . . . . 9 6 6 6 2 1 5 10 6 5 5 1 . . . . . . Reactor 1 | . . . . . . . . . . . . . . 3 5 5 5 5 4 3 4 4 1 Treads 5 | . . . 9 34 14 . . . . . . . . . . . . . . . . . . Wheel 6 | . 28 26 21 . . . . . . . . . . . . . . . . . . . . Flight 15 | . . . . . 7 33 33 33 33 28 23 15 21 25 26 26 26 25 26 22 25 25 18 Device 7 | . . . . . 1 8 13 12 6 6 1 10 10 10 7 7 13 15 16 20 20 19 12 Storage 16 | . 27 28 33 27 19 6 12 13 13 9 5 . . 4 5 5 5 5 4 4 7 8 5 Processor 5 | . . . . . 7 7 6 6 6 11 15 15 15 10 10 10 10 10 9 8 8 7 5 Hackware 7 | . . . . 1 12 13 6 6 6 6 21 15 15 15 15 15 10 10 9 8 8 8 5 Protection 2 | . . . . 5 4 3 . . . . . 4 5 5 5 5 5 5 8 8 8 7 1 Energy Gun 3 | . 28 18 . . . 6 . . . . . . . . . . 4 . . . 2 2 . Ballistic Gun 4 | . . 7 13 14 5 . . . . . . . . . . . . . . . . . . Slashing Weapon 3 | . . . 6 3 2 6 . . . 8 9 5 5 5 5 5 5 8 9 7 5 3 1 Naked Turns . | . . . . . . . . . . . . . . . . . . . . . . . . Heaviest Build 114 | 11 71 72 109 114 111 39 37 30 28 28 26 32 32 40 38 37 63 61 65 74 75 76 88 Greatest Support 102 | 20 20 20 60 84 84 39 39 30 30 30 24 41 41 57 41 60 70 70 83 88 94 97 102 Greatest Overweight (x) 36 | 1 3 6 9 2 36 1 . 1 . 1 1 1 . . . . . . . 1 1 . 3 Average Overweight (x) . | . 2 3 3 1 1 . . . . . . . . . . . . . . . . . . Largest Inventory Capacity 28 | 6 20 20 28 28 28 10 10 10 10 10 4 4 4 8 8 8 8 8 8 8 10 10 12 Average Capacity 15 | 5 18 20 27 28 23 10 10 10 10 6 4 4 4 7 8 8 8 8 8 8 9 10 9 Most Carried 28 | 5 9 11 28 28 28 10 10 9 7 8 4 4 4 8 8 8 8 8 8 8 10 10 10 Average Carried 13 | 3 7 9 21 27 22 9 9 7 7 5 3 3 3 7 7 7 7 7 7 7 9 9 8 Final Capacity 28 | 6 20 20 28 28 10 10 10 10 10 4 4 4 4 8 8 8 8 8 8 8 10 10 4 Final Carried 28 | 5 9 10 28 28 10 10 9 7 7 4 4 4 4 8 8 8 8 8 7 8 10 9 2 Class Distribution -------------------- 41% | Hauler-Mutant 31% | Hacker-Sprinter 9% | Hacker-Mutant 8% | Sprinter 8% | Mutant Dominant Class ---------------- Hauler-Mutant | -10/Materials Hauler-Mutant | -10/Mines Hauler-Mutant | -9/Materials Hauler-Mutant | -8/Materials Hauler-Mutant | -7/Factory Hacker-Sprinter | -6/Factory Sprinter | -6/Lower Caves Mutant | -6/Lower Caves Sprinter | -6/Data Miner Sprinter | -5/Proximity Caves Hacker-Sprinter | -5/Factory Hacker-Mutant | -4/Factory Hacker-Sprinter | -4/Waste Hacker-Sprinter | -4/Factory Hacker-Sprinter | -4/Upper Caves Hacker-Sprinter | -4/Upper Caves Hacker-Sprinter | -4/Warlord Hacker-Sprinter | -3/Proximity Caves Hacker-Sprinter | -3/Research Hacker-Sprinter | -2/Research Hacker-Sprinter | -2/Testing Hacker-Sprinter | -2/Section 7 Hacker-Mutant | -1/Access Resources | -11 -10 -10 -9 -8 -7 -6 -6 -6 -6 -5 -5 -4 -4 -4 -4 -4 -4 -3 -3 -2 -2 -2 -1 ----------- Run | Scr Mat Min Mat Mat Fac Fac Low Low Dat Pro Fac Fac Was Fac Upp Upp War Pro Res Res Tes Sec Acc Matter Collected 3115 | 270 . 99 729 376 273 362 58 44 . 20 75 29 . 84 26 55 165 50 30 48 74 145 103 Remotely . | . . . . . . . . . . . . . . . . . . . . . . . . Salvage Created 5741 | 145 19 222 1845 696 748 449 46 . . . 159 241 . 435 . . 90 34 39 . 74 287 212 Parts 314 | 8 2 19 108 53 41 21 2 . . . 5 8 . 25 . . 2 1 . . 6 8 5 Haulers Intercepted 9 | . . . 4 . 1 3 . . . . . . . . . . . . . . . 1 . Recyclers Shooed 3 | . . . . 1 . . . . . . . . . . . . . . . . . . 2 Parts Field Recycled . | . . . . . . . . . . . . . . . . . . . . . . . . Retrieved Matter . | . . . . . . . . . . . . . . . . . . . . . . . . Parts Self-Destructed 78 | . . . . . . . 4 5 . 8 . . . . . . 61 . . . . . . Prevented 29 | . . . . . . . . . . . . . . . 1 . 27 1 . . . . . Kills | -11 -10 -10 -9 -8 -7 -6 -6 -6 -6 -5 -5 -4 -4 -4 -4 -4 -4 -3 -3 -2 -2 -2 -1 ------- Run | Scr Mat Min Mat Mat Fac Fac Low Low Dat Pro Fac Fac Was Fac Upp Upp War Pro Res Res Tes Sec Acc Combat Hostiles Destroyed 86 | . . 8 34 15 20 . 1 . . . . 1 . 2 . . 1 . . . . . 4 Melee 10 | . . . 4 . 1 . . . . . . 1 . 2 . . . . . . . . 2 Guns 62 | . . 8 30 15 7 . . . . . . . . . . . 1 . . . . . 1 Cannons 2 | . . . . . 2 . . . . . . . . . . . . . . . . . . AOE 12 | . . . . . 10 . 1 . . . . . . . . . . . . . . . 1 Classes Destroyed 15 | 2 1 2 6 . 2 . 1 . . . . . . . . . . . . . 1 . . Worker 7 | . 1 . 1 . . 2 . . . . 2 1 . . . . . . . . . . . Builder 5 | . . . 1 . 3 . . . . . . . . . . . . . . . . . 1 Tunneler 4 | 3 . . . . . . . . . . . . . . . . . . . . . . 1 Hauler 9 | . . . 4 . 1 3 . . . . . . . . . . . . . . . 1 . Recycler 10 | 1 . 1 1 2 . 1 . . . . 1 1 . 2 . . . . . . . . . Minesweeper 2 | . . . . . . . 1 . . . . . . . . . . 1 . . . . . Operator 2 | . . . 2 . . . . . . . . . . . . . . . . . . . . Watcher 6 | . . . 2 . 1 . . . . . . . . 2 . . . . 1 . . . . Swarmer 31 | . . 6 6 7 11 . 1 . . . . . . . . . . . . . . . . Grunt 28 | . . 2 18 2 6 . . . . . . . . . . . . . . . . . . Brawler 3 | . . . 2 . . . . . . . . . . . . . 1 . . . . . . Researcher 4 | . . . . . . . . . . . . . . . . . . . . . 1 3 . Sentry 15 | . . . 8 6 . . . . . . . 1 . . . . . . . . . . . Hunter 1 | . . . . . 1 . . . . . . . . . . . . . . . . . . Programmer 4 | . . . . . 2 . . . . . . . . 2 . . . . . . . . . Tracker 2 | . . . . . . . . . . . . . . . . . . . . . . . 2 Combat Programmer 2 | . . . . . . . . . . . . . . . . . . . . . . . 2 Best Kill Streak 16 | 3 1 3 5 4 16 3 1 . . . 2 2 . 3 . . 1 1 1 . 1 1 3 Combat Bots Only 11 | . . 3 5 4 11 . 1 . . . . 1 . 2 . . 1 . . . . . 2 Max Kills in Single Turn 5 | 1 1 1 2 2 5 1 1 . . . 1 1 . 1 . . 1 1 1 . 1 1 1 Gunslinging 1 | . . . 1 1 . . . . . . . . . . . . . . . . . . . Exploded 3 | . . . . . 3 . 1 . . . . . . . . . . . . . . . 1 Melee 1 | . . . 1 . 1 . . . . . . 1 . 1 . . . . . . . . 1 Uniques/NPCs Destroyed . | . . . . . . . . . . . . . . . . . . . . . . . . Combat | -11 -10 -10 -9 -8 -7 -6 -6 -6 -6 -5 -5 -4 -4 -4 -4 -4 -4 -3 -3 -2 -2 -2 -1 -------- Run | Scr Mat Min Mat Mat Fac Fac Low Low Dat Pro Fac Fac Was Fac Upp Upp War Pro Res Res Tes Sec Acc Damage Taken 13093 | . . 428 2038 699 2001 209 208 85 . 207 130 46 . 255 75 114 246 256 252 891 . 830 4123 Core 3227 | . . 86 371 71 387 46 32 32 . 81 43 . . 82 16 18 25 . 27 59 . 115 1736 Absorbed by Shields 381 | . . . . . . . . . . . . . . . . . . . . . . . 381 Core Remaining (%) 74 | 100 . 65 7 87 44 . . . . 77 95 . . . . . . 87 97 . . 84 . Volleys Fired 328 | 17 1 34 145 45 55 5 . . . . . . . . . . 15 . . . . 2 9 Largest 2 | 2 2 2 2 2 2 1 . . . . . . . . . . 1 . . . . 1 2 Hottest 200 | 100 100 100 76 46 102 50 . . . . . . . . . . 65 . . . . 200 200 Shots Fired 551 | 34 2 60 244 90 87 5 . . . . . . . . . . 15 . . . . 2 12 Gun 525 | 34 2 60 244 90 65 5 . . . . . . . . . . 15 . . . . 1 9 Cannon 16 | . . . . . 12 . . . . . . . . . . . . . . . . 1 3 Launcher 10 | . . . . . 10 . . . . . . . . . . . . . . . . . . Special . | . . . . . . . . . . . . . . . . . . . . . . . . Kinetic 398 | . . 23 224 90 61 . . . . . . . . . . . . . . . . . . Thermal 104 | 34 2 37 20 . 7 . . . . . . . . . . . . . . . . 1 3 Explosive 5 | . . . . . 5 . . . . . . . . . . . . . . . . . . Electromagnetic 35 | . . . . . 14 5 . . . . . . . . . . 15 . . . . 1 . Entropic 9 | . . . . . . . . . . . . . . . . . . . . . . . 9 Robot Hit Streak 22 | 5 3 5 15 22 14 8 . . . . . . . . . . 9 . . . . 8 2 Robot Miss Streak 9 | 2 . 3 6 2 2 . . . . . . . . . . . 4 . . . . . 9 Penetration Max . | . . . . . . . . . . . . . . . . . . . . . . . . Secondary Targets 10 | . . 3 3 3 1 . . . . . . . . . . . . . . . . . . Max Gunslinging Chain 1 | . . 1 1 1 1 . . . . . . . . . . . . . . . . . . Shots Hit Robots 453 | 21 2 32 170 67 71 11 1 . . 5 7 8 . 9 . . 10 3 7 2 1 10 16 Core Hits 218 | 5 1 14 68 27 51 8 3 . . 1 2 4 . 6 . . 3 2 2 . 1 5 15 Critical Hits 9 | . . . 1 . 3 . . . . . 4 . . . . . . . . . . 1 . Critical Kills 3 | . . . 1 . 1 . . . . . 1 . . . . . . . . . . . . Critical Parts Destroyed 5 | . . . . . 2 . . . . . 3 . . . . . . . . . . . . Melee Attacks 234 | . . . 17 3 9 14 1 . . 8 11 9 . 18 4 . 2 10 37 17 11 41 22 Impact . | . . . . . . . . . . . . . . . . . . . . . . . . Slashing 225 | . . . 17 3 9 14 1 . . 8 11 9 . 18 4 . 2 10 37 17 11 41 13 Piercing 9 | . . . . . . . . . . . . . . . . . . . . . . . 9 Sneak Attacks 27 | . . . 3 . . 4 1 . . . 4 3 . 3 . . . 1 . 1 1 5 1 Combat Hostiles . | . . . . . . . . . . . . . . . . . . . . . . . . Follow-up Attacks 7 | . . . 3 . 2 . . . . . 1 . . . . . . . 1 . . . . Damage Inflicted 13715 | 278 25 320 2709 1014 2313 605 173 . . 158 697 696 . 842 . . 230 197 302 192 182 1073 1709 Guns 5200 | 278 25 307 2134 1014 756 92 . . . . . . . . . . 230 . . . . 1 363 Cannons 515 | . . . . . 248 . . . . . . . . . . . . . . . . . 267 Explosions 1816 | . . . 26 . 1121 . 86 . . . . . . . . . . . . . . 34 549 Melee 6159 | . . . 543 . 188 513 87 . . 158 697 696 . 842 . . . 197 302 192 182 1038 524 Ramming 25 | . . 13 6 . . . . . . . . . . . . . . . . . . . 6 Kinetic 3839 | . . 96 1973 1014 756 . . . . . . . . . . . . . . . . . . Thermal 1796 | 278 25 211 161 . 271 . . . . . . . . . . . . . . . . 34 816 Explosive 685 | . . . . . 685 . . . . . . . . . . . . . . . . . . Electromagnetic 848 | . . . 26 . 413 92 86 . . . . . . . . . 230 . . . . 1 . Impact . | . . . . . . . . . . . . . . . . . . . . . . . . Slashing 5904 | . . . 543 . 188 513 87 . . 158 697 696 . 842 . . . 197 302 192 182 1038 269 Piercing 255 | . . . . . . . . . . . . . . . . . . . . . . . 255 Entropic 363 | . . . . . . . . . . . . . . . . . . . . . . . 363 Highest Corruption 20 | . . 2 . 2 3 . . . . 2 3 3 10 10 10 10 12 2 . . . . 20 Average Corruption 4 | . . 2 . 1 1 . . . . 2 1 2 6 10 10 10 11 2 . . . . 12 Corruption Purged . | . . . . . . . . . . . . . . . . . . . . . . . . Effects 63 | . . 1 . 4 1 . . . . 1 2 2 2 24 13 1 1 1 . . . . 10 Message Errors 9 | . . . . 1 . . . . . . 2 2 . 2 1 . . 1 . . . . . Matter Fused 9 | . . . . . . . . . . . . . 1 5 1 . . . . . . . 2 Heat Flow Errors 3 | . . 1 . . . . . . . . . . . 2 . . . . . . . . . Energy Discharges 5 | . . . . 1 . . . . . 1 . . . 2 1 . . . . . . . . Parts Rejected 3 | . . . . . . . . . . . . . . 1 . 1 . . . . . . 1 Data Loss (minor) 5 | . . . . 1 1 . . . . . . . . 1 1 . . . . . . . 1 Data Loss (major) 1 | . . . . . . . . . . . . . . . 1 . . . . . . . . Misdirections 21 | . . . . . . . . . . . . . 1 9 8 . 1 . . . . . 2 Targeting Errors 7 | . . . . 1 . . . . . . . . . 2 . . . . . . . . 4 Overload Shots . | . . . . . . . . . . . . . . . . . . . . . . . . Overflow Damage 1362 | . . . 72 . 120 65 . . . 4 217 91 . 6 . . . 79 36 5 . 250 417 Projectiles 191 | . . . . . . . . . . . . . . . . . . . . . . . 191 Explosions 207 | . . . . . 114 . . . . . . . . . . . . . . . . . 93 Melee 964 | . . . 72 . 6 65 . . . 4 217 91 . 6 . . . 79 36 5 . 250 133 Knockbacks . | . . . . . . . . . . . . . . . . . . . . . . . . Impact . | . . . . . . . . . . . . . . . . . . . . . . . . Kinetic . | . . . . . . . . . . . . . . . . . . . . . . . . Secondary . | . . . . . . . . . . . . . . . . . . . . . . . . Self-Inflicted Damage 171 | . . 6 17 . . . . . . . . . . . . . . . . . . . 148 Shots 3 | . . . 1 . . . . . . . . . . . . . . . . . . . 2 Rammed 3 | . . 1 1 . . . . . . . . . . . . . . . . . . . 1 Targets Rammed 3 | . . 1 1 . . . . . . . . . . . . . . . . . . . 1 Kicked . | . . . . . . . . . . . . . . . . . . . . . . . . Crushed . | . . . . . . . . . . . . . . . . . . . . . . . . Highest Temperature 406 | 351 39 267 254 2 140 159 73 4 . . . . . 333 3 223 406 38 82 150 89 387 62 Average Temperature 86 | 171 24 89 73 2 44 38 36 4 . . . . . 85 1 97 141 15 40 64 56 141 38 Received Heat Transfer 1746 | . . 102 738 180 351 84 12 9 . 6 . 9 . 66 . . . 9 9 45 . 81 45 Effects 16 | 4 . . . . . . . . . . . . . 2 . 1 9 . . . . . . Shutdowns 2 | 1 . . . . . . . . . . . . . . . . 1 . . . . . . Energy Bleed 3 | . . . . . . . . . . . . . . 2 . . 1 . . . . . . Interference 9 | 2 . . . . . . . . . . . . . . . 1 6 . . . . . . Matter Decay 1 | 1 . . . . . . . . . . . . . . . . . . . . . . . Short Circuit 1 | . . . . . . . . . . . . . . . . . 1 . . . . . . Siege Activations . | . . . . . . . . . . . . . . . . . . . . . . . . Robots Corrupted . | . . . . . . . . . . . . . . . . . . . . . . . . Combat Hostiles . | . . . . . . . . . . . . . . . . . . . . . . . . Parts Fried 4 | . . . . . 3 . 1 . . . . . . . . . . . . . . . . Impact Corruptions . | . . . . . . . . . . . . . . . . . . . . . . . . Robots Melted . | . . . . . . . . . . . . . . . . . . . . . . . . Combat Hostiles . | . . . . . . . . . . . . . . . . . . . . . . . . Parts Melted 4 | 1 . 1 . . 1 . . . . . . . . . . . . . . . . . 1 Heat Transferred 3009 | 814 74 617 385 . 422 . . . . . . . . . . . . . . . . 50 647 Parts Sabotaged . | . . . . . . . . . . . . . . . . . . . . . . . . Parts Stolen . | . . . . . . . . . . . . . . . . . . . . . . . . Parts Stripped . | . . . . . . . . . . . . . . . . . . . . . . . . Power Chain Reactions 4 | . . . . . 3 . . . . . . . . . . . . . . . . 1 . Missiles Intercepted . | . . . . . . . . . . . . . . . . . . . . . . . . Alert | -11 -10 -10 -9 -8 -7 -6 -6 -6 -6 -5 -5 -4 -4 -4 -4 -4 -4 -3 -3 -2 -2 -2 -1 ------- Run | Scr Mat Min Mat Mat Fac Fac Low Low Dat Pro Fac Fac Was Fac Upp Upp War Pro Res Res Tes Sec Acc Peak Influence 794 | 20 39 115 637 611 794 512 . . . . 158 165 87 655 . . . . 177 229 243 678 482 Average Influence 311 | 9 21 60 295 481 558 425 . . . . 98 105 68 302 . . . . 83 171 194 423 426 Maximum Alert Level 3 | . . . 2 2 3 2 . . . . . . . 2 . . . . . 1 1 2 2 Low Security (%) 42 | 100 100 100 46 . . . . . . . 100 100 100 51 . . . . 100 67 44 7 . Level 1 15 | . . . 16 18 25 17 . . . . . . . 14 . . . . . 32 55 21 20 Level 2 38 | . . . 37 81 46 82 . . . . . . . 34 . . . . . . . 70 79 Level 3 4 | . . . . . 27 . . . . . . . . . . . . . . . . . . Level 4 . | . . . . . . . . . . . . . . . . . . . . . . . . Level 5 . | . . . . . . . . . . . . . . . . . . . . . . . . High Security . | . . . . . . . . . . . . . . . . . . . . . . . . Max Security . | . . . . . . . . . . . . . . . . . . . . . . . . Squads Dispatched 40 | . 1 . 4 3 9 2 . . . . . 3 . . . . . . 1 3 3 7 4 Investigation 9 | . . . 2 1 . 2 . . . . . 1 . . . . . . 1 2 . . . Extermination 4 | . . . . . 2 . . . . . . 1 . . . . . . . . . 1 . Reinforcement 14 | . 1 . 2 1 4 . . . . . . 1 . . . . . . . 1 1 2 1 Assault 3 | . . . . . . . . . . . . . . . . . . . . . 2 1 . Garrison 5 | . . . . 1 3 . . . . . . . . . . . . . . . . 1 . Intercept 5 | . . . . . . . . . . . . . . . . . . . . . . 2 3 Construction Impeded 3 | . . . . 1 1 . . . . . . . . . . . . . . . . . 1 Haulers Reinforced 3 | . . . . . 2 . . . . . . . . . . . . . . 1 . . . Stealth | -11 -10 -10 -9 -8 -7 -6 -6 -6 -6 -5 -5 -4 -4 -4 -4 -4 -4 -3 -3 -2 -2 -2 -1 --------- Run | Scr Mat Min Mat Mat Fac Fac Low Low Dat Pro Fac Fac Was Fac Upp Upp War Pro Res Res Tes Sec Acc Distress Signals 32 | . 1 . 3 3 2 . . . . . 1 2 . 1 . . 1 . . 10 2 4 2 Communications Jammed . | . . . . . . . . . . . . . . . . . . . . . . . . Distress Signals . | . . . . . . . . . . . . . . . . . . . . . . . . Times Spotted 430 | . 5 12 62 25 43 7 9 17 . 1 14 7 3 15 5 11 34 3 15 49 . 70 23 Peak Tracking Total 20 | . 5 3 6 6 10 3 5 6 . 1 5 4 3 7 5 9 12 4 8 20 . 13 13 Tactical Retreats 59 | . 1 1 4 . 11 1 2 6 . . 5 . . . . 1 4 1 2 6 . 12 2 Traps | -11 -10 -10 -9 -8 -7 -6 -6 -6 -6 -5 -5 -4 -4 -4 -4 -4 -4 -3 -3 -2 -2 -2 -1 ------- Run | Scr Mat Min Mat Mat Fac Fac Low Low Dat Pro Fac Fac Was Fac Upp Upp War Pro Res Res Tes Sec Acc Traps Triggered 12 | . . . 2 1 1 . . . . . 2 3 . . . . 1 1 1 . . . . Indirectly . | . . . . . . . . . . . . . . . . . . . . . . . . Trap Hack Attempts . | . . . . . . . . . . . . . . . . . . . . . . . . Triggered . | . . . . . . . . . . . . . . . . . . . . . . . . Disarmed . | . . . . . . . . . . . . . . . . . . . . . . . . Reprogrammed . | . . . . . . . . . . . . . . . . . . . . . . . . Reused 2 | . . . . . . . 1 1 . . . . . . . . . . . . . . . Traps Extracted . | . . . . . . . . . . . . . . . . . . . . . . . . Installed 5 | . . . . . . . 3 2 . . . . . . . . . . . . . . . Triggered 12 | . . . . . . . 3 1 . . . . . . 1 . 7 . . . . . . Machines | -11 -10 -10 -9 -8 -7 -6 -6 -6 -6 -5 -5 -4 -4 -4 -4 -4 -4 -3 -3 -2 -2 -2 -1 ---------- Run | Scr Mat Min Mat Mat Fac Fac Low Low Dat Pro Fac Fac Was Fac Upp Upp War Pro Res Res Tes Sec Acc Machines Disabled 14 | . . . 2 . . . . . . 1 . . . . . . . . . . 3 8 . Max in Single Turn 1 | . . . 1 . . . . . . 1 . . . . . . . . . . 1 1 . Garrison Access 3 | . . . . . . . . . . . 1 . . . . . . . . . 1 . 1 Machines Sabotaged . | . . . . . . . . . . . . . . . . . . . . . . . . Garrisons Compromised . | . . . . . . . . . . . . . . . . . . . . . . . . Overloaded Fab Kills . | . . . . . . . . . . . . . . . . . . . . . . . . Fab Network Shutdowns 2 | . . . . . 1 . . . . . . . . 1 . . . . . . . . . Hacking | -11 -10 -10 -9 -8 -7 -6 -6 -6 -6 -5 -5 -4 -4 -4 -4 -4 -4 -3 -3 -2 -2 -2 -1 --------- Run | Scr Mat Min Mat Mat Fac Fac Low Low Dat Pro Fac Fac Was Fac Upp Upp War Pro Res Res Tes Sec Acc Machines Accessed 96 | . 2 . 10 5 5 8 . . 4 . 5 3 . 6 . . 10 . 10 4 2 17 5 Terminals 59 | . 2 . 9 4 3 6 . . . . 2 . . 5 . . . . 7 1 1 16 3 Fabricators 4 | . . . . . 1 . . . . . 1 . . 1 . . . . . . 1 . . Repair Stations 5 | . . . . . . 1 . . . . . 1 . . . . . . 1 1 . 1 . Recycling Units 1 | . . . . . . . . . . . . 1 . . . . . . . . . . . Scanalyzers 10 | . . . 1 1 1 1 . . . . 1 . . . . . . . 2 2 . . 1 Garrison Access 3 | . . . . . . . . . . . 1 1 . . . . . . . . . . 1 Total Hacks 293 | . 5 . 33 20 18 27 . . 25 . 15 4 . 22 . . 15 . 35 12 3 49 10 Successful 200 | . 2 . 24 13 14 21 . . 25 . 7 3 . 13 . . 15 . 19 5 1 35 3 Failed 92 | . 3 . 9 7 4 5 . . . . 8 1 . 9 . . . . 16 7 2 14 7 Catastrophic 19 | . . . 1 3 . . . . . . 1 1 . 2 . . . . 2 2 . 5 2 Database Lockouts 1 | . . . . . . 1 . . . . . . . . . . . . . . . . . Manual 163 | . 5 . 23 13 7 19 . . . 1 8 1 . 16 . . 1 . 21 3 2 37 6 Terminals 185 | . 5 . 26 17 7 21 . . . . 8 . . 18 . . . . 24 3 2 48 6 Fabricators 10 | . . . . . 2 . . . . . 3 . . 4 . . . . . . 1 . . Repair Stations 11 | . . . . . . 3 . . . . . 2 . . . . . . 2 3 . 1 . Recycling Units 1 | . . . . . . . . . . . . 1 . . . . . . . . . . . Scanalyzers 42 | . . . 7 3 9 3 . . . . 2 . . . . . . . 9 6 . . 3 Garrison Access 4 | . . . . . . . . . . . 2 1 . . . . . . . . . . 1 Terminal Hacks 73 | . . . 4 4 . 6 . . 25 . . . . 2 . . 15 . 3 . . 14 . Record 20 | . . . . . . . . . 11 . . . . . . . 8 . . . . 1 . Part Schematic 8 | . . . 1 . . 1 . . 5 . . . . . . . . . 1 . . . . Robot Schematic 6 | . . . . . . . . . 6 . . . . . . . . . . . . . . Robot Analysis 1 | . . . . . . . . . . . . . . . . . . . 1 . . . . Prototype ID Bank 14 | . . . 2 . . 1 . . 3 . . . . . . . 5 . . . . 3 . Open Door 6 | . . . . . . . . . . . . . . . . . 2 . . . . 4 . Level Access Points 2 | . . . . . . . . . . . . . . . . . . . 1 . . 1 . Branch Access Points 3 | . . . 1 . . 1 . . . . . . . 1 . . . . . . . . . Terminal Index 4 | . . . . 1 . 1 . . . . . . . 1 . . . . . . . 1 . Scanalyzer Index 1 | . . . . 1 . . . . . . . . . . . . . . . . . . . Locate Traps 1 | . . . . 1 . . . . . . . . . . . . . . . . . . . Recall Investigation 1 | . . . . . . 1 . . . . . . . . . . . . . . . . . Recall Extermination 1 | . . . . . . . . . . . . . . . . . . . . . . 1 . Registered Components 1 | . . . . 1 . . . . . . . . . . . . . . . . . . . Zone Layout 2 | . . . . . . 1 . . . . . . . . . . . . . . . 1 . Activate Exoskeleton 2 | . . . . . . . . . . . . . . . . . . . . . . 2 . Fabricator Hacks 8 | . . . . . 2 . . . . . 2 . . 4 . . . . . . . . . Load Schematic 4 | . . . . . 1 . . . . . 1 . . 2 . . . . . . . . . Build 4 | . . . . . 1 . . . . . 1 . . 2 . . . . . . . . . Repair Station Hacks 6 | . . . . . . 1 . . . . . 2 . . . . . . 1 2 . . . Scan Component 4 | . . . . . . 1 . . . . . 1 . . . . . . 1 1 . . . Repair 2 | . . . . . . . . . . . . 1 . . . . . . . 1 . . . Recycling Unit Hacks . | . . . . . . . . . . . . . . . . . . . . . . . . Scanalyzer 33 | . . . 7 3 9 3 . . . . 2 . . . . . . . 7 2 . . . Insert Component 16 | . . . 3 1 5 1 . . . . 1 . . . . . . . 3 2 . . . Analyze 17 | . . . 4 2 4 2 . . . . 1 . . . . . . . 4 . . . . Garrison Access Hacks 2 | . . . . . . . . . . . 1 . . . . . . . . . . . 1 Seal Access 2 | . . . . . . . . . . . 1 . . . . . . . . . . . 1 Unauthorized Hacks 187 | . 7 . 32 13 7 22 . . . . 10 2 . 15 . . . . 22 2 2 46 7 Terminals 77 | . 2 . 13 6 3 11 . . . . 2 . . 7 . . . . 8 1 1 21 2 Track 22 | . . . 3 1 . 4 . . . . 1 . . 1 . . . . 3 . . 9 . Assimilate 2 | . . . . . . 1 . . . . . . . . . . . . . . . 1 . Botnet 45 | . 1 . 8 4 3 4 . . . . 1 . . 5 . . . . 5 1 1 10 2 Disrupt 4 | . . . 1 . . 1 . . . . . . . 1 . . . . . . . 1 . Operators 4 | . 1 . 1 1 . 1 . . . . . . . . . . . . . . . . . Fabricators . | . . . . . . . . . . . . . . . . . . . . . . . . Repair Stations . | . . . . . . . . . . . . . . . . . . . . . . . . Recycling Units 1 | . . . . . . . . . . . . 1 . . . . . . . . . . . Tunnel 1 | . . . . . . . . . . . . 1 . . . . . . . . . . . Scanalyzers . | . . . . . . . . . . . . . . . . . . . . . . . . Garrison Access . | . . . . . . . . . . . . . . . . . . . . . . . . Data Cores Recovered . | . . . . . . . . . . . . . . . . . . . . . . . . Used . | . . . . . . . . . . . . . . . . . . . . . . . . Hacking Detections 69 | . 2 . 9 5 4 7 . . . . 3 1 . 5 . . . . 9 4 2 14 4 Full Trace Events 5 | . . . . 1 . 1 . . . . . . . . . . . . 1 2 . . . Feedback Events 1 | . . . . 1 . . . . . . . . . . . . . . . . . . . Corruption 1 | . . . . 1 . . . . . . . . . . . . . . . . . . . Feedback Blocked . | . . . . . . . . . . . . . . . . . . . . . . . . Robot Schematics Acquired 6 | . . . . . . . . . 6 . . . . . . . . . . . . . . Robots Built . | . . . . . . . . . . . . . . . . . . . . . . . . Matter . | . . . . . . . . . . . . . . . . . . . . . . . . Time . | . . . . . . . . . . . . . . . . . . . . . . . . Total Robot Build Rating . | . . . . . . . . . . . . . . . . . . . . . . . . Part Schematics Acquired 19 | . . . 4 1 3 2 . . 5 . 1 . . . . . . . 3 . . . . Parts Built 5 | . . . . . 2 . . . . . 1 . . 2 . . . . . . . . . Matter 906 | . . . . . 102 . . . . . 168 . . 636 . . . . . . . . . Time 406 | . . . . . 25 . . . . . 42 . . 339 . . . . . . . . . Total Part Build Rating 18 | . . . . . 2 . . . . . 4 . . 12 . . . . . . . . . Parts Repaired 1 | . . . . . . . . . . . . . . . . . . . . 1 . . . Time 88 | . . . . . . . . . . . . 60 . . . . . . . 28 . . . Parts Recycled . | . . . . . . . . . . . . . . . . . . . . . . . . Recycled Matter . | . . . . . . . . . . . . . . . . . . . . . . . . Retrieved Matter . | . . . . . . . . . . . . . . . . . . . . . . . . Retrieved Components . | . . . . . . . . . . . . . . . . . . . . . . . . Parts Scanalyzed 13 | . . . 3 1 3 1 . . . . 1 . . . . . . . 3 1 . . . Part Schematics Acquired 11 | . . . 3 1 3 1 . . . . 1 . . . . . . . 2 . . . . Parts Damaged . | . . . . . . . . . . . . . . . . . . . . . . . . Bothacking | -11 -10 -10 -9 -8 -7 -6 -6 -6 -6 -5 -5 -4 -4 -4 -4 -4 -4 -3 -3 -2 -2 -2 -1 ------------ Run | Scr Mat Min Mat Mat Fac Fac Low Low Dat Pro Fac Fac Was Fac Upp Upp War Pro Res Res Tes Sec Acc Used RIF Installer . | . . . . . . . . . . . . . . . . . . . . . . . . Robots Hacked . | . . . . . . . . . . . . . . . . . . . . . . . . Non-combat . | . . . . . . . . . . . . . . . . . . . . . . . . Combat . | . . . . . . . . . . . . . . . . . . . . . . . . Robot Hacks Applied . | . . . . . . . . . . . . . . . . . . . . . . . . Relay Couplers Released 3 | . . . . . . . . . . . . . . . . . . . . . 3 . . Machine Destruction 3 | . . . . . . . . . . . . . . . . . . . . . 3 . . Robots Rewired . | . . . . . . . . . . . . . . . . . . . . . . . . Allies Hacked . | . . . . . . . . . . . . . . . . . . . . . . . . Hacks Repelled . | . . . . . . . . . . . . . . . . . . . . . . . . Allies | -11 -10 -10 -9 -8 -7 -6 -6 -6 -6 -5 -5 -4 -4 -4 -4 -4 -4 -3 -3 -2 -2 -2 -1 -------- Run | Scr Mat Min Mat Mat Fac Fac Low Low Dat Pro Fac Fac Was Fac Upp Upp War Pro Res Res Tes Sec Acc Total Allies 4 | . . . . . . 1 . . . 1 . . 1 . . . . . . . . 1 . Largest Group 1 | . . . . . . 1 . . . 1 . . 1 . . . . . . . . 1 . Highest-Rated Group 94 | . . . . . . 26 . . . 94 . . 46 . . . . . . . . 26 . Highest-Rated Ally 94 | . . . . . . 26 . . . 94 . . 46 . . . . . . . . 26 . Total Orders . | . . . . . . . . . . . . . . . . . . . . . . . . Ally Attacks 12 | . . . . . . . . . . 12 . . . . . . . . . . . . . Total Damage 507 | . . . . . . . . . . 507 . . . . . . . . . . . . . Kills 3 | . . . . . . . . . . 3 . . . . . . . . . . . . . Allies Corrupted . | . . . . . . . . . . . . . . . . . . . . . . . . Allies Melted . | . . . . . . . . . . . . . . . . . . . . . . . . Intel | -11 -10 -10 -9 -8 -7 -6 -6 -6 -6 -5 -5 -4 -4 -4 -4 -4 -4 -3 -3 -2 -2 -2 -1 ------- Run | Scr Mat Min Mat Mat Fac Fac Low Low Dat Pro Fac Fac Was Fac Upp Upp War Pro Res Res Tes Sec Acc Robot Analysis Total 1 | . . . . . . . . . . . . . . . . . . . 1 . . . . Derelict Logs Recovered 11 | . . 2 . . . . 2 2 . 2 . . . . 1 2 . . . . . . . Drone Launches . | . . . . . . . . . . . . . . . . . . . . . . . . Drone Recoveries . | . . . . . . . . . . . . . . . . . . . . . . . . Exploration | -11 -10 -10 -9 -8 -7 -6 -6 -6 -6 -5 -5 -4 -4 -4 -4 -4 -4 -3 -3 -2 -2 -2 -1 ------------- Run | Scr Mat Min Mat Mat Fac Fac Low Low Dat Pro Fac Fac Was Fac Upp Upp War Pro Res Res Tes Sec Acc Turns Passed 9988 | 121 235 806 1537 722 1162 460 473 820 20 147 309 277 28 454 157 78 508 188 231 219 117 617 302 Spaces Moved 12394 | 68 214 620 660 274 700 867 632 800 84 343 476 311 96 580 460 246 1129 515 536 539 274 1389 581 Core 37 | 12 . . . . 1 . . . . . . . . . . . . . . . . . 24 Treads 749 | . . . 130 274 341 . . . . . . . . . . . . . . . . . 4 Legs 3 | . . . . . 3 . . . . . . . . . . . . . . . . . . Wheels 1420 | 56 214 620 530 . . . . . . . . . . . . . . . . . . . . Hover . | . . . . . . . . . . . . . . . . . . . . . . . . Flight 10185 | . . . . . 355 867 632 800 84 343 476 311 96 580 460 246 1129 515 536 539 274 1389 553 Fastest Speed 6 | 50 80 110 110 172 26 23 23 23 23 23 26 26 27 24 27 24 25 25 15 15 6 6 7 Average Speed 48 | 76 102 112 131 175 125 38 23 40 23 29 45 68 27 25 27 25 25 25 20 23 20 17 29 Slowest Speed 1850 | 90 110 140 260 200 1850 96 23 96 23 96 105 99 27 27 27 27 28 25 21 94 94 21 200 Overloaded Moves 461 | . . . . . . . . . . . . . . . . . . . 42 111 11 289 8 Propulsion Burnouts . | . . . . . . . . . . . . . . . . . . . . . . . . Robots Hopped 41 | . . . . . . 3 1 1 . . . . . 1 3 2 1 . . 14 1 13 1 Cave-ins Triggered . | . . . . . . . . . . . . . . . . . . . . . . . . Teleports 2 | . . . . . . . . . . . . . . . . . . . . . . 1 1 Exploration Rate (%) 46 | 4 35 98 70 35 24 22 79 67 68 48 17 12 78 18 55 56 89 69 23 19 30 89 16 Regions Visited 23 Branch Regions 11 Pre-discovered Areas 6 | . . 1 . . . . 1 . 1 . . 1 . . . 1 1 . . . . . . Known Exits Taken 15 | . . . . . . 1 1 1 1 1 1 . . 1 1 1 1 1 1 1 1 1 . Unknown Exits Taken 6 | 1 1 1 1 1 1 . . . . . . . . . . . . . . . . . . Scrap Searched 12 | . . 1 . . . . 3 4 . . . . . . 1 3 . . . . . . . Spaces Dug 119 | . . . 2 3 . 6 . . . . 2 . . 6 4 . . 6 20 11 6 37 16 Terrain Destroyed 153 | . . . 2 3 11 6 10 . . . 2 . . 6 4 . . 6 20 11 6 39 27 Melee 89 | . . . 2 3 . 6 . . . . 2 . . 6 4 . . 6 20 11 6 19 4 Projectile 2 | . . . . . . . . . . . . . . . . . . . . . . 1 1 AOE 62 | . . . . . 11 . 10 . . . . . . . . . . . . . . 19 22 Actions | -11 -10 -10 -9 -8 -7 -6 -6 -6 -6 -5 -5 -4 -4 -4 -4 -4 -4 -3 -3 -2 -2 -2 -1 --------- Run | Scr Mat Min Mat Mat Fac Fac Low Low Dat Pro Fac Fac Was Fac Upp Upp War Pro Res Res Tes Sec Acc Total 15488 | 102 228 672 1081 424 892 971 959 1292 83 377 560 362 97 858 483 259 1329 560 611 597 322 1698 671 Wait 1902 | . 1 9 178 43 76 23 307 490 . 19 39 32 . 236 16 10 144 25 32 15 8 191 8 Move 12294 | 67 213 619 659 273 699 860 629 797 83 342 475 311 95 577 455 241 1126 514 535 511 271 1363 579 Hop 37 | . . . . . . 3 1 1 . . . . . 1 1 2 1 . . 13 1 12 1 Pick Up 278 | 11 7 5 48 23 12 25 5 . . 2 16 4 1 13 3 3 12 5 4 19 11 33 16 Fast Attach . | . . . . . . . . . . . . . . . . . . . . . . . . Attach 161 | 6 2 4 19 3 21 7 4 . . 3 7 4 . 3 . 2 8 4 6 9 7 24 18 Detach 15 | . . . . . 1 . 2 . . . 1 1 . . . . 1 . 1 1 2 1 4 Swap 68 | 1 2 . 7 13 6 11 1 . . . 2 . . 4 2 . 9 . . 2 2 4 2 Drop 182 | . 2 . 13 21 15 23 6 2 . 3 11 1 1 6 2 1 11 2 3 11 10 27 11 Fire 328 | 17 1 34 145 45 55 5 . . . . . . . . . . 15 . . . . 2 9 Melee 214 | . . . 11 3 7 14 1 . . 8 9 9 . 18 4 . 2 9 30 16 10 41 22 Ram 3 | . . 1 1 . . . . . . . . . . . . . . . . . . . 1 Kick . | . . . . . . . . . . . . . . . . . . . . . . . . Crush . | . . . . . . . . . . . . . . . . . . . . . . . . Escape Stasis . | . . . . . . . . . . . . . . . . . . . . . . . . Rewire . | . . . . . . . . . . . . . . . . . . . . . . . . Trap 6 | . . . . . . . 3 2 . . . . . . . . . 1 . . . . . Miscellaneous . | . . . . . . . . . . . . . . . . . . . . . . . . Route ------- -11/Scrapyard -10/Materials -10/Mines (discovered 2 exits: *Mat x2) -9/Materials (discovered 6 exits: *Mat x2 / *Min x2 / *Sto x2) -8/Materials -7/Factory (discovered 2 exits: *Fac / [*Low]) -6/Factory (discovered 2 exits: *Low x2) -6/Lower Caves -6/Lower Caves -6/Data Miner -5/Proximity Caves -5/Factory -4/Factory -4/Waste -4/Factory (discovered 4 exits: *Upp x2 / Ext x2) -4/Upper Caves -4/Upper Caves -4/Warlord -3/Proximity Caves -3/Research (discovered 4 exits: *Res x3 / [*Qua]) -2/Research -2/Testing (discovered 2 exits: Acc / *Sec) -2/Section 7 -1/Access History --------- Turn | Location | Event 22 | -11/Scrapyard | Discovered new exit (range 15) 122 | -11/Scrapyard | Entered Materials 213 | -10/Materials | Discovered new exit (range 16) 357 | -10/Materials | Entered Mines 490 | -10/Mines | Discovered new exit (range 10) 492 | -10/Mines | Learned location of Storage (-9) 492 | -10/Mines | Build established: Hauler-Mutant 598 | -10/Mines | Discovered new exit (range 6) 800 | -10/Mines | Learned 2 Materials zone layouts 1163 | -10/Mines | Entered Materials 1163 | -9/Materials | Evolved 2 slots: Propulsion x1, Utility x1 1164 | -9/Materials | Identified exit to Storage 1264 | -9/Materials | Lost 3 parts (1n2w) 1462 | -9/Materials | Identified exit to Mines 1522 | -9/Materials | Discovered new exit (range 16) 1602 | -9/Materials | Lost 3 parts (2n1w) 1999 | -9/Materials | Core integrity fell below 50% 2181 | -9/Materials | Lost 4 parts (3n1w) 2303 | -9/Materials | Core integrity fell below 20% 2372 | -9/Materials | Discovered new exit (range 16) 2700 | -9/Materials | Entered another Materials area 2700 | -8/Materials | Evolved 2 slots: Propulsion x1, Utility x1 3393 | -8/Materials | Garrison activated, responded to threat 3407 | -8/Materials | Discovered new exit (range 10) 3422 | -8/Materials | Entered Factory 3422 | -7/Factory | Evolved 2 slots: Utility x2 3515 | -7/Factory | Fabricated Propulsion Shielding (x2) 3660 | -7/Factory | Discovered new exit (range 20) 3722 | -7/Factory | Local fabrication network quarantined 4138 | -7/Factory | Lost 4 parts (1p1n2w) 4214 | -7/Factory | Garrison activated, responded to threat 4272 | -7/Factory | Lost 4 parts (2n2w) 4280 | -7/Factory | Destroyed 11 combat bots 4413 | -7/Factory | Discovered new exit (range 17) 4563 | -7/Factory | Core integrity fell below 50% 4584 | -7/Factory | Entered another Factory area 4584 | -6/Factory | Evolved 2 slots: Power x1, Propulsion x1 4604 | -6/Factory | Identified exit to Lower Caves 4748 | -6/Factory | Build established: Hacker-Mutant 4895 | -6/Factory | Central database locked down 4963 | -6/Factory | Found Prototype Processor 4970 | -6/Factory | Identified Exp. Terrain Scan Processor 4973 | -6/Factory | Found Exp. Terrain Scan Processor 4975 | -6/Factory | Found Prototype Processor 4976 | -6/Factory | Identified Exp. Signal Interpreter 4980 | -6/Factory | Found Exp. Terrain Scan Processor 5044 | -6/Factory | Entered Lower Caves 5055 | -6/Lower Caves | Spotted B-75 Beast 5099 | -6/Lower Caves | Lost 3 parts (1p1u1w) 5207 | -6/Lower Caves | Encountered a Warlord checkpoint 5216 | -6/Lower Caves | Learned 4 Factory zone layouts 5338 | -6/Lower Caves | Build established: Sprinter 5512 | -6/Lower Caves | Discovered new exit (range 8) 5513 | -6/Lower Caves | Identified exit to Lower Caves 5517 | -6/Lower Caves | Entered another Lower Caves area 5568 | -6/Lower Caves | Learned location of 1 exit from Factory 5947 | -6/Lower Caves | Build established: Mutant 6301 | -6/Lower Caves | Learned Factory stockpile data 6328 | -6/Lower Caves | Discovered new exit (range 5) 6334 | -6/Lower Caves | Identified exit to Data Miner 6337 | -6/Lower Caves | Entered Data Miner 6337 | -6/Data Miner | Discovered new exit (range 6) 6342 | -6/Data Miner | Met Data Miner 6348 | -6/Data Miner | Learned location of Section 7 (-2) 6348 | -6/Data Miner | Acquired the access code to Warlord's prototype stash 6350 | -6/Data Miner | Received God Mode back door access code from Data Miner 6356 | -6/Data Miner | Identified exit to Proximity Caves 6357 | -6/Data Miner | Entered Proximity Caves 6368 | -5/Proximity Caves | Learned location of 1 exit from Upper Caves 6377 | -5/Proximity Caves | Escorted by Enhanced Grunt 6433 | -5/Proximity Caves | Acquired the password to a Derelict Tinkerer's latest research 6454 | -5/Proximity Caves | Learned Factory stockpile data 6488 | -5/Proximity Caves | Discovered new exit (range 12) 6491 | -5/Proximity Caves | Identified exit to Factory 6504 | -5/Proximity Caves | Entered Factory 6504 | -5/Factory | Evolved 2 slots: Utility x2 6505 | -5/Factory | Identified exit to Factory 6637 | -5/Factory | Fabricated Lrn. Sensor Array? 6813 | -5/Factory | Entered another Factory area 6813 | -4/Factory | Evolved 2 slots: Propulsion x1, Utility x1 7090 | -4/Factory | Sucked down chute 7090 | -4/Factory | Entered Waste 7091 | -4/Waste | Met a frightened Derelict 7102 | -4/Waste | Spotted C-40 Crusher 7102 | -4/Waste | Spotted C-40 Crusher 7105 | -4/Waste | EMP discharged 7105 | -4/Waste | System corruption reached 10% 7108 | -4/Waste | Spotted C-40 Crusher 7109 | -4/Waste | Spotted C-40 Crusher 7109 | -4/Waste | Spotted C-40 Crusher 7113 | -4/Waste | Discovered new exit (range 14) 7117 | -4/Waste | Identified exit to Factory 7118 | -4/Waste | Entered Factory 7141 | -4/Factory | Found Exp. Signal Interpreter 7202 | -4/Factory | Identified exit to Upper Caves 7202 | -4/Factory | Identified exit to Extension 7341 | -4/Factory | Fabricated Lgt. Regenerative Plating (x1) 7365 | -4/Factory | Build established: Hacker-Sprinter 7416 | -4/Factory | Local fabrication network quarantined 7533 | -4/Factory | Fabricated Exp. ECM Suite? 7572 | -4/Factory | Entered Upper Caves 7573 | -4/Upper Caves | Identified exit to Upper Caves 7605 | -4/Upper Caves | Learned Research terminal intel 7729 | -4/Upper Caves | Entered another Upper Caves area 7755 | -4/Upper Caves | Learned 8 Research zone layouts 7803 | -4/Upper Caves | Discovered new exit (range 8) 7804 | -4/Upper Caves | Attracted the attention of an 0b10 outpost 7807 | -4/Upper Caves | Identified exit to Warlord 7807 | -4/Upper Caves | Entered Warlord 7817 | -4/Warlord | System corruption cleaned by Quarantine Array 7845 | -4/Warlord | Visited the Vortex Lab 7846 | -4/Warlord | Found Prototype Energy Gun 7847 | -4/Warlord | Identified Vortex Shotgun 7850 | -4/Warlord | Found Prototype Energy Gun 7851 | -4/Warlord | Identified Vortex Rifle 7857 | -4/Warlord | Found Vortex Shotgun 7868 | -4/Warlord | Warlord's base attacked by MAIN.C 7913 | -4/Warlord | Met Warlord 7916 | -4/Warlord | Opened Warlord's prototype stash 7918 | -4/Warlord | Found Prototype Device 7919 | -4/Warlord | Identified Exp. Focal Shield 7922 | -4/Warlord | Found Prototype Device 7923 | -4/Warlord | Identified Exp. Phase Shifter 7932 | -4/Warlord | Found Prototype Reactor 7933 | -4/Warlord | Identified Vortex Chain Reactor 7976 | -4/Warlord | Learned location of Quarantine (-3) 7977 | -4/Warlord | Learned 4 Quarantine zone layouts 7977 | -4/Warlord | Learned Armory security intel 7977 | -4/Warlord | Learned Research fabricator intel 8051 | -4/Warlord | Opened side exit 8218 | -4/Warlord | Warlord forces counterattacked 8306 | -4/Warlord | Discovered new exit (range 15) 8313 | -4/Warlord | Identified exit to Proximity Caves 8315 | -4/Warlord | Entered Proximity Caves 8404 | -3/Proximity Caves | Attracted the attention of an 0b10 checkpoint 8447 | -3/Proximity Caves | Discovered new exit (range 15) 8451 | -3/Proximity Caves | Identified exit to Research 8465 | -3/Proximity Caves | Found Alien Artifact 8466 | -3/Proximity Caves | Identified Core Expander 8466 | -3/Proximity Caves | Installed Core Expander, added new Propulsion slot 8503 | -3/Proximity Caves | Entered Research 8503 | -3/Research | Evolved 2 slots: Utility x2 8505 | -3/Research | Loaded intel: 19 terminal locations 8506 | -3/Research | Loaded intel: 4 fabricator locations 8572 | -3/Research | Found Quantum Capacitor 8621 | -3/Research | Identified exit to Research 8625 | -3/Research | Incoming investigation squad redirected 8635 | -3/Research | Discovered new exit (range 16) 8645 | -3/Research | Spotted B-86 Titan 8728 | -3/Research | Spotted B-86 Titan 8734 | -3/Research | Entered another Research area 8734 | -2/Research | Warlord forces began assault on 0b10 8734 | -2/Research | Evolved 2 slots: Utility x2 8766 | -2/Research | Repaired Nuclear Pulse Array 8803 | -2/Research | Spotted B-90 Cyclops 8844 | -2/Research | Research machine network offline 8946 | -2/Research | Discovered new exit (range 5) 8950 | -2/Research | Identified exit to Testing 8953 | -2/Research | Entered Testing 8965 | -2/Testing | Protovariant out of control (PP-1TDO4PFOUZ) 8981 | -2/Testing | Found Prototype Energy Cannon 8982 | -2/Testing | Identified Potential Cannon 9009 | -2/Testing | Found Prototype Energy Gun 9010 | -2/Testing | Identified Hyp. EM Gauss Rifle 9027 | -2/Testing | Incoming assault squad redirected 9036 | -2/Testing | Discovered new exit (range 7) 9048 | -2/Testing | Spotted Fortress 9061 | -2/Testing | Discovered new exit (range 5) 9062 | -2/Testing | Identified exit to Section 7 9070 | -2/Testing | Entered Section 7 9107 | -2/Section 7 | Spotted S7 Guard 9111 | -2/Section 7 | Found Alien Artifact 9112 | -2/Section 7 | Identified Integrated Singularity Reactor 9112 | -2/Section 7 | Installed Integrated Singularity Reactor, increased core energy generation (+2%) 9126 | -2/Section 7 | Garrison activated, responded to threat 9131 | -2/Section 7 | Spotted B-90 Cyclops 9320 | -2/Section 7 | First assault squad dispatched 9335 | -2/Section 7 | Incoming assault squad redirected 9374 | -2/Section 7 | Found Alien Artifact 9375 | -2/Section 7 | Identified Integrated Reactor 9375 | -2/Section 7 | Installed Integrated Reactor, increased core energy generation (+2%) 9432 | -2/Section 7 | Identified exit to Access 9435 | -2/Section 7 | Spotted Alpha 7 9468 | -2/Section 7 | Spotted Alpha 7 9472 | -2/Section 7 | Spotted B-99 Colossus 9523 | -2/Section 7 | Spotted Striker 9523 | -2/Section 7 | Spotted Striker 9535 | -2/Section 7 | Found Alien Artifact 9537 | -2/Section 7 | Identified Matter Drive 9547 | -2/Section 7 | Found Alien Artifact 9548 | -2/Section 7 | Identified Transdimensional Reconstructor 9548 | -2/Section 7 | Warped through subspace 9557 | -2/Section 7 | Found Transdimensional Reconstructor 9560 | -2/Section 7 | Found Alien Artifact 9562 | -2/Section 7 | Identified Terrabomb 9562 | -2/Section 7 | Used Terrabomb 9568 | -2/Section 7 | Found Terrabomb 9584 | -2/Section 7 | Spotted Executioner 9587 | -2/Section 7 | Used Terrabomb 9598 | -2/Section 7 | Spotted Executioner 9599 | -2/Section 7 | Found Terrabomb 9626 | -2/Section 7 | Found Alien Artifact 9627 | -2/Section 7 | Identified LRC Energy Well 9627 | -2/Section 7 | Installed LRC Energy Well, increased energy storage capacity (+250) 9628 | -2/Section 7 | Found Alien Artifact 9629 | -2/Section 7 | Identified LRC Armor 9629 | -2/Section 7 | Installed LRC Armor, increased core integrity (+250) 9654 | -2/Section 7 | Found Integrated Reactor 9655 | -2/Section 7 | Installed Integrated Reactor, increased core energy generation (+2%) 9667 | -2/Section 7 | Used Terrabomb 9677 | -2/Section 7 | Scanned by Researcher 9678 | -2/Section 7 | Intercept squad dispatched 9687 | -2/Section 7 | Spotted Tracker 9687 | -2/Section 7 | Spotted Tracker 9687 | -2/Section 7 | Entered Access 9687 | -1/Access | Evolved 2 slots: Propulsion x1, Utility x1 9816 | -1/Access | Warped through subspace 9837 | -1/Access | Intercept squad dispatched 9838 | -1/Access | Spotted B-99 Colossus 9854 | -1/Access | Spotted Tracker 9854 | -1/Access | Spotted Tracker 9868 | -1/Access | Spotted Combat Programmer 9899 | -1/Access | Destroyed Tracker 9904 | -1/Access | Destroyed Tracker 9919 | -1/Access | System corruption reached 10% 9929 | -1/Access | Spotted Combat Programmer 9942 | -1/Access | Destroyed Combat Programmer 9947 | -1/Access | Core integrity fell below 50% 9952 | -1/Access | Destroyed Combat Programmer 9983 | -1/Access | Core integrity fell below 20% 9989 | -1/Access | Destroyed by H-88 Terminator with KE Penetrator Last Messages --------------- 09953_ ALERT: Construction progress impeded, dispatching reinforcements to local area. 09957_ Acquired 44 matter. 09968_ Connecting with Terminal... 09974_ Penetrated by Slug. 09975_ Slug penetrates Wall. 09976_ System corrupted: Field Propulsion Array rejected. 09976_ Slug penetrates Wall. 09977_ Potential Cannon destroyed. 09978_ Slug penetrates Wall. 09979_ Penetrated by Slug. 09980_ Med. Storage Unit destroyed. 09981_ Slammed into H-88 Terminator. 09981_ Destabilizing: System interference. 09981_ Adv. Core Analyzer temporarily disabled. 09982_ Slug penetrates Wall. 09985_ Penetrated by Slug. 09985_ Slug penetrates R-10 Processor. 09985_ R-10 Processor suffers critical hit. 09985_ Penetrated by Slug. Map ----- +----------------------------------------------------+ | #?????????# """ # #?#"" #??? | | ###?????????#= " # #?#T #??? | | #?????????# ######## #?#"" #??? | | #?????????# #?????????#?#"" #??? | | #?????????##+####+##???????????#"" #??? | | #?????????## #??? #???????#????### #??? | | #??########" #### ##??????# ##### #### | | #??# = # #??????# | | #??# + ^ +??????# | | #??# # #??????######## ###+######## | | #??######"## ##?????????????# #?# ! | | #???????## #??????????????# #?# | | ########## #??????????????# #?#! """ | | + #??????????????#= #?# ""T"" | | ######## #??????????????# #?# "" "" | | ???????# #????????????### ### | | ???????# ##########+############## # | | ???????# #????# # # | | ???????# #????# # s ########## | | ???????# #????# # s #????????? | | ???????# #????# ! # #????????? | | ???????# #????########### s##### #????????# | | ???????? ?????# ????# Rs#???########??????# | | ???????? ??????? ??# #?? #???????# | | ???????? ??????? ""G"" # # #???????# | | ???????? ?????# " " /@ A/ " #???????# | | ????????#?????# " " # # """ #??????? | | ??????????????# # #?? """ ?????????? | | ??????????????# ?# kh#????" ?????????? | | ??????????????# ??# h #?????? ?????????? | | ??????????????##+####???# #??????????????????## | | ????????????????????????# k#???????????????????? | | ????????????????????????# #???????????????????? | | ???????????????????????? k#???????????????????? | | ????????????????????????# #???????????????????? | | ????????????????????????# #???????????????????? | | ????????????????????????# #???????????????????? | | ????????????????????????# #???????????????????? | | ????????????????????????# #???????????????????? | | ????????????????????????# #???????????????????? | | ????????????????????????# ????????????????????? | | ????????????????????????? ????????????????????? | | ?????????????????????????????????????????????????? | | ?????????????????????????????????????????????????? | | ?????????????????????????????????????????????????? | | ?????????????????????????????????????????????????? | | ?????????????????????????????????????????????????? | | ?????????????????????????????????????????????????? | | ?????????????????????????????????????????????????? | | ?????????????????????????????????????????????????? | +----------------------------------------------------+ Best States ------------- Heat Dissipation 90 Energy Generation 95 Energy Capacity 950 Matter Stores 300 Matter Capacity 300 Sight Range 22 Robot Scan Range 20 Terrain Scan Range 18 Terrain Scan Density 1010 ECM Strength 3 Power Amplification 20 Additional Mass Support 9 Armor Coverage 300 Resistance: KI 30 Propulsion Shielding 33 Phase Shifting 20 Evasion (%) 85 Target Analysis 6 Core Analysis 10 Armor Integrity Analysis 50 Recoil Reduction 4 Offensive Hacking 20 Defensive Hacking 30 Item Schematics ----------------- Propulsion Shielding | -9/Materials | Hacked Lrg. Storage Unit | -9/Materials | Scanalyzed Adv. Weight Redist. System | -9/Materials | Scanalyzed Imp. ECM Suite | -9/Materials | Scanalyzed Hacking Suite | -8/Materials | Scanalyzed Imp. VTOL Module | -7/Factory | Scanalyzed Lrn. Sensor Array | -7/Factory | Scanalyzed Imp. Melee Analysis Suite | -7/Factory | Scanalyzed System Shield | -6/Factory | Hacked Exp. Terrain Scan Processor | -6/Factory | Scanalyzed Combat Drone Bay | -6/Data Miner | Free Lgt. Regenerative Plating | -6/Data Miner | Free Triangulator | -6/Data Miner | Free Exp. ECM Suite | -6/Data Miner | Free Plasma Sword | -6/Data Miner | Free Ionic Axe | -5/Factory | Scanalyzed Adv. Hacking Suite | -3/Research | Hacked Nuclear Pulse Array | -3/Research | Scanalyzed Quantum Capacitor | -3/Research | Scanalyzed Robot Schematics ------------------ S-27 Virus | -6/Data Miner | Free G-50 Soldier | -6/Data Miner | Free G-67 Veteran | -6/Data Miner | Free P-70 Sage | -6/Data Miner | Free X-72 Disruptor | -6/Data Miner | Free I-36 Angel | -6/Data Miner | Free Fabricated ------------ Propulsion Shielding | x2 | -7/Factory Lrn. Sensor Array | x1 | -5/Factory Lgt. Regenerative Plating | x1 | -4/Factory Exp. ECM Suite | x1 | -4/Factory Alien Tech Used ----------------- Core Expander Integrated Singularity Reactor Integrated Reactor Matter Drive Transdimensional Reconstructor Terrabomb LRC Energy Well LRC Armor Achievements -------------- Hard Hitter More Power To You Speed Demon Whoosh! Challenges ------------ None Game ------ Seed AlphaAbsorptionReplicator Manual? 0 Play Time 02:54:04 Cumulative 279.3 hours Start 2019.12.18 @ 23:42:51 End 2019.12.20 @ 00:24:33 Sessions 5 Manual Loads 0 Difficulty Rogue Special Mode None Game No. 317 Rogue 317 Adventurer 0 Explorer 0 Win Type - Total 3 Types 1/1/0/1/0/0/0 Lore% 65 Gallery% 83 Achievement% 63 Wizard Run 0 Options --------- ASCII 0 Keyboard 0 Movement Numpad Keybinds 0 Fullscreen 1 Font 16/Terminus Map View 75x55 Tactical HUD 1 Map Filters NONE Filters NONE Steam 1 RUN: e5afa5b7-8f1d-4801-baab-48add239be20